fUST/lending_fUST_20260530
["ID","MTS","AMOUNT","RATE_DAILY","PERIOD"]
[423396758,1780084239000,-500.0,0.00010999,2]
[423396795,1780084239000,-300.0,0.00011219,2]
[423396757,1780084239000,-1224.6738,0.00010999,2]
[423396831,1780084240000,-652.43,0.00011271,2]
[423396836,1780084240000,-743.79,0.00011271,2]
[423396832,1780084240000,-481.26630383,0.00011271,2]
[423396826,1780084240000,-500.0,0.00011271,2]
[423396828,1780084240000,-500.0,0.00011271,2]
[423396834,1780084240000,-500.0,0.00011271,2]
[423396833,1780084240000,-500.0,0.00011271,2]
[423396829,1780084240000,-500.0,0.00011271,2]
[423396830,1780084240000,-910.32,0.00011271,2]
[423396835,1780084240000,-500.0,0.00011271,2]
[423396827,1780084240000,-500.0,0.00011271,2]
[423396841,1780084240000,-500.0,0.00011271,2]
[423396837,1780084240000,-500.0,0.00011271,2]
[423396839,1780084240000,-478.42837699,0.00011271,2]
[423396848,1780084240000,-500.0,0.00011272,2]
[423396849,1780084240000,-500.0,0.00011272,2]
[423396840,1780084240000,-1517.97,0.00011271,2]
[423396847,1780084240000,-500.0,0.00011271,2]
[423396845,1780084240000,-1798.09,0.00011271,2]
[423396846,1780084240000,-500.0,0.00011271,2]
[423396843,1780084240000,-1401.86,0.00011271,2]
[423396844,1780084240000,-11644.4,0.00011271,2]
[423396825,1780084240000,-1164.9,0.00011271,2]
[423396838,1780084240000,-199.05162301,0.00011271,2]
[423396824,1780084240000,-1353.93,0.00011271,2]
[423396806,1780084240000,-300.0,0.00011219,2]
[423396817,1780084240000,-500.0,0.0001127,2]
[423396798,1780084240000,-300.0,0.00011219,2]
[423396797,1780084240000,-300.0,0.00011219,2]
[423396799,1780084240000,-300.0,0.00011219,2]
[423396801,1780084240000,-300.0,0.00011219,2]
[423396803,1780084240000,-300.0,0.00011219,2]
[423396802,1780084240000,-300.0,0.00011219,2]
[423396800,1780084240000,-300.0,0.00011219,2]
[423396810,1780084240000,-1190.19,0.0001127,2]
[423396805,1780084240000,-300.0,0.00011219,2]
[423396804,1780084240000,-300.0,0.00011219,2]
[423396807,1780084240000,-300.0,0.00011219,2]
[423396820,1780084240000,-733.76,0.0001127,2]
[423396809,1780084240000,-156.2065752,0.0001127,2]
[423396812,1780084240000,-500.0,0.0001127,2]
[423396821,1780084240000,-583.62,0.0001127,2]
[423396814,1780084240000,-500.0,0.0001127,2]
[423396823,1780084240000,-500.0,0.00011271,2]
[423396816,1780084240000,-500.0,0.0001127,2]
[423396811,1780084240000,-500.0,0.0001127,2]
[423396818,1780084240000,-500.0,0.0001127,2]
[423396822,1780084240000,-500.0,0.0001127,2]
[423396819,1780084240000,-500.0,0.0001127,2]
[423396815,1780084240000,-500.0,0.0001127,2]
[423396813,1780084240000,-501.53,0.0001127,2]
[423396808,1780084240000,-672.48,0.0001127,2]
[423396851,1780084240000,-500.0,0.00011272,2]
[423396842,1780084240000,-500.0,0.00011271,2]
[423396859,1780084240000,-500.0,0.00011272,2]
[423396882,1780084240000,-500.0,0.00011273,2]
[423396885,1780084240000,-507.97,0.00011273,2]
[423396884,1780084240000,-500.0,0.00011273,2]
[423396895,1780084240000,-500.0,0.00011273,2]
[423396883,1780084240000,-500.0,0.00011273,2]
[423396886,1780084240000,-500.0,0.00011273,2]
[423396887,1780084240000,-500.0,0.00011273,2]
[423396894,1780084240000,-500.0,0.00011273,2]
[423396888,1780084240000,-500.0,0.00011273,2]
[423396891,1780084240000,-500.0,0.00011273,2]
[423396890,1780084240000,-500.0,0.00011273,2]
[423396879,1780084240000,-500.0,0.00011273,2]
[423396889,1780084240000,-500.0,0.00011273,2]
[423396896,1780084240000,-500.0,0.00011273,2]
[423396898,1780084240000,-500.0,0.00011273,2]
[423396899,1780084240000,-500.0,0.00011273,2]
[423396897,1780084240000,-500.0,0.00011273,2]
[423396905,1780084240000,-500.0,0.00011273,2]
[423396903,1780084240000,-493.40543886,0.00011273,2]
[423396901,1780084240000,-500.0,0.00011273,2]
[423396900,1780084240000,-500.0,0.00011273,2]
[423396904,1780084240000,-1224.6738,0.00011273,2]
[423396902,1780084240000,-500.0,0.00011273,2]
[423396850,1780084240000,-500.0,0.00011272,2]
[423396893,1780084240000,-500.0,0.00011273,2]
[423396873,1780084240000,-500.0,0.00011272,2]
[423396892,1780084240000,-500.0,0.00011273,2]
[423396877,1780084240000,-500.0,0.00011273,2]
[423396852,1780084240000,-502.40738991,0.00011272,2]
[423396881,1780084240000,-500.0,0.00011273,2]
[423396855,1780084240000,-500.0,0.00011272,2]
[423396854,1780084240000,-219.51567831,0.00011272,2]
[423396853,1780084240000,-500.0,0.00011272,2]
[423396856,1780084240000,-500.0,0.00011272,2]
[423396858,1780084240000,-500.0,0.00011272,2]
[423396860,1780084240000,-500.0,0.00011272,2]
[423396862,1780084240000,-500.0,0.00011272,2]
[423396861,1780084240000,-500.0,0.00011272,2]
[423396864,1780084240000,-500.0,0.00011272,2]
[423396863,1780084240000,-500.0,0.00011272,2]
[423396857,1780084240000,-500.0,0.00011272,2]
[423396874,1780084240000,-500.0,0.00011272,2]
[423396867,1780084240000,-500.0,0.00011272,2]
[423396868,1780084240000,-500.0,0.00011272,2]
[423396866,1780084240000,-500.0,0.00011272,2]
[423396869,1780084240000,-500.0,0.00011272,2]
[423396871,1780084240000,-500.0,0.00011272,2]
[423396875,1780084240000,-500.0,0.00011272,2]
[423396870,1780084240000,-500.0,0.00011272,2]
[423396872,1780084240000,-500.0,0.00011272,2]
[423396878,1780084240000,-500.0,0.00011273,2]
[423396876,1780084240000,-500.0,0.00011273,2]
[423396880,1780084240000,-500.0,0.00011273,2]
[423396865,1780084240000,-500.0,0.00011272,2]
[423396948,1780084241000,-500.0,0.00011545,2]
[423396947,1780084241000,-500.0,0.00011545,2]
[423396942,1780084241000,-500.0,0.00011545,2]
[423396949,1780084241000,-910.32,0.00011545,2]
[423396950,1780084241000,-652.43,0.00011545,2]
[423396944,1780084241000,-1164.9,0.00011545,2]
[423396938,1780084241000,-500.0,0.00011544,2]
[423396941,1780084241000,-500.0,0.00011544,2]
[423396939,1780084241000,-733.76,0.00011544,2]
[423396940,1780084241000,-583.62,0.00011544,2]
[423396935,1780084241000,-500.0,0.00011544,2]
[423396957,1780084241000,-602.21115187,0.00011545,2]
[423396943,1780084241000,-1353.93,0.00011545,2]
[423396953,1780084241000,-500.0,0.00011545,2]
[423396962,1780084241000,-1798.09,0.00011545,2]
[423396952,1780084241000,-500.0,0.00011545,2]
[423396958,1780084241000,-1517.97,0.00011545,2]
[423396955,1780084241000,-500.0,0.00011545,2]
[423396960,1780084241000,-1401.86,0.00011545,2]
[423396951,1780084241000,-500.0,0.00011545,2]
[423396956,1780084241000,-677.48,0.00011545,2]
[423396954,1780084241000,-743.79,0.00011545,2]
[423396966,1780084241000,-500.0,0.00011546,2]
[423396961,1780084241000,-11644.4,0.00011545,2]
[423396965,1780084241000,-500.0,0.00011546,2]
[423396964,1780084241000,-500.0,0.00011545,2]
[423396967,1780084241000,-479.26,0.00011546,2]
[423396937,1780084241000,-500.0,0.00011544,2]
[423396959,1780084241000,-500.0,0.00011545,2]
[423396946,1780084241000,-500.0,0.00011545,2]
[423396910,1780084241000,-500.0,0.00011273,2]
[423396936,1780084241000,-500.0,0.00011544,2]
[423396963,1780084241000,-500.0,0.00011545,2]
[423396908,1780084241000,-1811.41,0.00011273,2]
[423396906,1780084241000,-500.0,0.00011273,2]
[423396907,1780084241000,-500.0,0.00011273,2]
[423396914,1780084241000,-500.0,0.00011273,2]
[423396909,1780084241000,-500.0,0.00011273,2]
[423396917,1780084241000,-500.0,0.00011273,2]
[423396921,1780084241000,-500.0,0.00011273,2]
[423396918,1780084241000,-500.0,0.00011273,2]
[423396911,1780084241000,-786.17,0.00011273,2]
[423396920,1780084241000,-500.0,0.00011273,2]
[423396912,1780084241000,-500.0,0.00011273,2]
[423396915,1780084241000,-500.0,0.00011273,2]
[423396919,1780084241000,-500.0,0.00011273,2]
[423396913,1780084241000,-500.0,0.00011273,2]
[423396916,1780084241000,-2345.73,0.00011273,2]
[423396922,1780084241000,-500.0,0.00011273,2]
[423396924,1780084241000,-500.0,0.00011273,2]
[423396923,1780084241000,-654.99,0.00011273,2]
[423396931,1780084241000,-500.0,0.00011544,2]
[423396927,1780084241000,-821.100533,0.00011532,2]
[423396928,1780084241000,-672.48,0.00011544,2]
[423396926,1780084241000,-500.0,0.00011273,2]
[423396934,1780084241000,-500.0,0.00011544,2]
[423396933,1780084241000,-500.0,0.00011544,2]
[423396929,1780084241000,-1190.19,0.00011544,2]
[423396932,1780084241000,-501.53,0.00011544,2]
[423396925,1780084241000,-606.57,0.00011273,2]
[423396930,1780084241000,-500.0,0.00011544,2]
[423396945,1780084241000,-500.0,0.00011545,2]
[423396968,1780084241000,-500.0,0.00011546,2]
[423396988,1780084241000,-500.0,0.00011547,2]
[423396970,1780084241000,-500.0,0.00011546,2]
[423397011,1780084241000,-500.0,0.00011547,2]
[423397009,1780084241000,-786.17,0.00011547,2]
[423397002,1780084241000,-1224.6738,0.00011547,2]
[423397006,1780084241000,-1811.41,0.00011547,2]
[423397001,1780084241000,-500.0,0.00011547,2]
[423397004,1780084241000,-500.0,0.00011547,2]
[423397007,1780084241000,-500.0,0.00011547,2]
[423397003,1780084241000,-500.0,0.00011547,2]
[423397005,1780084241000,-500.0,0.00011547,2]
[423397013,1780084241000,-500.0,0.00011547,2]
[423397015,1780084241000,-500.0,0.00011547,2]
[423397016,1780084241000,-500.0,0.00011547,2]
[423397020,1780084241000,-500.0,0.00011547,2]
[423397018,1780084241000,-392.86963807,0.00011547,2]
[423397014,1780084241000,-2345.73,0.00011547,2]
[423397021,1780084241000,-654.99,0.00011547,2]
[423397017,1780084241000,-500.0,0.00011547,2]
[423397019,1780084241000,-500.0,0.00011547,2]
[423397024,1780084241000,-500.0,0.00011547,2]
[423397022,1780084241000,-500.0,0.00011547,2]
[423397023,1780084241000,-606.57,0.00011547,2]
[423397026,1780084241000,-948.78316862,0.00011646,2]
[423397025,1780084241000,-639.04797402,0.00011612,2]
[423397031,1780084241000,-604.08,0.00011818,2]
[423397030,1780084241000,-500.0,0.00011818,2]
[423397027,1780084241000,-224.02665938,0.000117,2]
[423397029,1780084241000,-1190.19,0.00011818,2]
[423397032,1780084241000,-501.53,0.00011818,2]
[423396969,1780084241000,-500.0,0.00011546,2]
[423397010,1780084241000,-500.0,0.00011547,2]
[423397012,1780084241000,-500.0,0.00011547,2]
[423397028,1780084241000,-672.48,0.00011818,2]
[423397000,1780084241000,-500.0,0.00011547,2]
[423397008,1780084241000,-500.0,0.00011547,2]
[423396971,1780084241000,-500.0,0.00011546,3]
[423396973,1780084241000,-500.0,0.00011546,2]
[423396974,1780084241000,-500.0,0.00011546,2]
[423396975,1780084241000,-500.0,0.00011546,2]
[423396976,1780084241000,-500.0,0.00011546,2]
[423396980,1780084241000,-500.0,0.00011547,2]
[423396977,1780084241000,-500.0,0.00011546,2]
[423396978,1780084241000,-500.0,0.00011547,2]
[423396979,1780084241000,-500.0,0.00011547,2]
[423396981,1780084241000,-500.0,0.00011547,2]
[423396982,1780084241000,-500.0,0.00011547,2]
[423396983,1780084241000,-500.0,0.00011547,2]
[423396984,1780084241000,-507.97,0.00011547,2]
[423396972,1780084241000,-500.0,0.00011546,4]
[423396985,1780084241000,-500.0,0.00011547,2]
[423396987,1780084241000,-500.0,0.00011547,2]
[423396992,1780084241000,-500.0,0.00011547,2]
[423396989,1780084241000,-500.0,0.00011547,2]
[423397033,1780084241000,-500.0,0.00011818,2]
[423396986,1780084241000,-500.0,0.00011547,2]
[423396990,1780084241000,-500.0,0.00011547,2]
[423396993,1780084241000,-500.0,0.00011547,2]
[423396999,1780084241000,-500.0,0.00011547,2]
[423396998,1780084241000,-500.0,0.00011547,2]
[423396997,1780084241000,-500.0,0.00011547,2]
[423396994,1780084241000,-500.0,0.00011547,2]
[423396996,1780084241000,-500.0,0.00011547,2]
[423396995,1780084241000,-500.0,0.00011547,2]
[423396991,1780084241000,-500.0,0.00011547,2]
[423397073,1780084242000,-507.97,0.00011821,2]
[423397074,1780084242000,-500.0,0.00011821,2]
[423397075,1780084242000,-500.0,0.00011821,2]
[423397076,1780084242000,-500.0,0.00011821,2]
[423397072,1780084242000,-500.0,0.00011821,2]
[423397066,1780084242000,-500.0,0.0001182,2]
[423397070,1780084242000,-500.0,0.00011821,2]
[423397071,1780084242000,-500.0,0.00011821,2]
[423397068,1780084242000,-500.0,0.00011821,2]
[423397064,1780084242000,-500.0,0.0001182,2]
[423397063,1780084242000,-500.0,0.0001182,2]
[423397069,1780084242000,-216.27,0.00011821,2]
[423397079,1780084242000,-500.0,0.00011821,2]
[423397084,1780084242000,-500.0,0.00011821,2]
[423397078,1780084242000,-500.0,0.00011821,2]
[423397082,1780084242000,-500.0,0.00011821,2]
[423397081,1780084242000,-500.0,0.00011821,2]
[423397083,1780084242000,-500.0,0.00011821,2]
[423397077,1780084242000,-500.0,0.00011821,2]
[423397085,1780084242000,-500.0,0.00011821,2]
[423397093,1780084242000,-500.0,0.00011821,2]
[423397094,1780084242000,-500.0,0.00011821,2]
[423397086,1780084242000,-500.0,0.00011821,2]
[423397095,1780084242000,-1811.41,0.00011821,2]
[423397087,1780084242000,-500.0,0.00011821,2]
[423397065,1780084242000,-249.34,0.0001182,2]
[423397088,1780084242000,-500.0,0.00011821,2]
[423397080,1780084242000,-500.0,0.00011821,2]
[423397067,1780084242000,-500.0,0.00011821,2]
[423397047,1780084242000,-500.0,0.00011819,2]
[423397060,1780084242000,-1798.09,0.00011819,2]
[423397092,1780084242000,-500.0,0.00011821,2]
[423397035,1780084242000,-500.0,0.00011818,2]
[423397037,1780084242000,-500.0,0.00011818,2]
[423397036,1780084242000,-500.0,0.00011818,2]
[423397034,1780084242000,-500.0,0.00011818,2]
[423397038,1780084242000,-500.0,0.00011818,2]
[423397043,1780084242000,-1164.9,0.00011819,2]
[423397045,1780084242000,-500.0,0.00011819,2]
[423397040,1780084242000,-583.62,0.00011818,2]
[423397049,1780084242000,-652.43,0.00011819,2]
[423397039,1780084242000,-733.76,0.00011818,2]
[423397044,1780084242000,-500.0,0.00011819,2]
[423397046,1780084242000,-500.0,0.00011819,2]
[423397042,1780084242000,-1353.93,0.00011819,2]
[423397041,1780084242000,-500.0,0.00011819,2]
[423397048,1780084242000,-910.32,0.00011819,2]
[423397050,1780084242000,-500.0,0.00011819,2]
[423397052,1780084242000,-500.0,0.00011819,2]
[423397051,1780084242000,-624.2,0.00011819,2]
[423397055,1780084242000,-677.48,0.00011819,2]
[423397053,1780084242000,-743.79,0.00011819,2]
[423397054,1780084242000,-500.0,0.00011819,2]
[423397056,1780084242000,-1517.97,0.00011819,2]
[423397058,1780084242000,-1401.86,0.00011819,2]
[423397057,1780084242000,-500.0,0.00011819,2]
[423397059,1780084242000,-11644.4,0.00011819,2]
[423397061,1780084242000,-567.68,0.00011819,2]
[423397062,1780084242000,-500.0,0.00011819,2]
[423397089,1780084242000,-500.0,0.00011821,2]
[423397090,1780084242000,-500.0,0.00011821,2]
[423397159,1780084242000,-500.0,0.00011919,2]
[423397130,1780084242000,-500.0,0.00011919,2]
[423397128,1780084242000,-500.0,0.00011919,2]
[423397139,1780084242000,-440.54017475,0.00011919,2]
[423397134,1780084242000,-500.0,0.00011919,2]
[423397136,1780084242000,-500.0,0.00011919,2]
[423397137,1780084242000,-500.0,0.00011919,2]
[423397135,1780084242000,-500.0,0.00011919,2]
[423397140,1780084242000,-500.0,0.00011919,2]
[423397133,1780084242000,-500.0,0.00011919,2]
[423397142,1780084242000,-235.59086923,0.00011919,2]
[423397144,1780084242000,-500.0,0.00011919,2]
[423397148,1780084242000,-500.0,0.00011919,2]
[423397149,1780084242000,-500.0,0.00011919,2]
[423397145,1780084242000,-500.0,0.00011919,2]
[423397146,1780084242000,-500.0,0.00011919,2]
[423397147,1780084242000,-500.0,0.00011919,2]
[423397143,1780084242000,-500.0,0.00011919,2]
[423397154,1780084242000,-500.0,0.00011919,2]
[423397152,1780084242000,-500.0,0.00011919,2]
[423397151,1780084242000,-500.0,0.00011919,2]
[423397150,1780084242000,-485.83997625,0.00011919,2]
[423397155,1780084242000,-500.0,0.00011919,2]
[423397156,1780084242000,-500.0,0.00011919,2]
[423397161,1780084242000,-500.0,0.00011919,2]
[423397160,1780084242000,-500.0,0.00011919,2]
[423397157,1780084242000,-500.0,0.00011919,2]
[423397091,1780084242000,-1224.6738,0.00011821,2]
[423397141,1780084242000,-500.0,0.00011919,2]
[423397131,1780084242000,-500.0,0.00011919,2]
[423397153,1780084242000,-500.0,0.00011919,2]
[423397129,1780084242000,-500.0,0.00011919,2]
[423397132,1780084242000,-500.0,0.00011919,2]
[423397096,1780084242000,-500.0,0.00011821,2]
[423397105,1780084242000,-2345.73,0.00011821,2]
[423397103,1780084242000,-500.0,0.00011821,2]
[423397107,1780084242000,-500.0,0.00011821,2]
[423397098,1780084242000,-786.17,0.00011821,2]
[423397111,1780084242000,-500.0,0.00011821,2]
[423397099,1780084242000,-500.0,0.00011821,2]
[423397109,1780084242000,-207.6734297,0.00011821,2]
[423397101,1780084242000,-500.0,0.00011821,2]
[423397112,1780084242000,-500.0,0.00011821,2]
[423397100,1780084242000,-500.0,0.00011821,2]
[423397114,1780084242000,-654.99,0.00011821,2]
[423397113,1780084242000,-500.0,0.00011821,2]
[423397097,1780084242000,-500.0,0.00011821,2]
[423397118,1780084242000,-500.0,0.00011915,5]
[423397115,1780084242000,-500.0,0.00011821,2]
[423397124,1780084242000,-364.36224229,0.00011919,2]
[423397125,1780084242000,-500.0,0.00011919,2]
[423397122,1780084242000,-271.54851605,0.00011919,2]
[423397127,1780084242000,-500.0,0.00011919,2]
[423397117,1780084242000,-500.0,0.00011821,2]
[423397138,1780084242000,-500.0,0.00011919,2]
[423397116,1780084242000,-606.57,0.00011821,2]
[423397119,1780084242000,-500.0,0.00011918,6]
[423397120,1780084242000,-422.12428833,0.00011918,7]
[423397126,1780084242000,-500.0,0.00011919,2]
[423397123,1780084242000,-500.0,0.00011919,2]
[423397121,1780084242000,-300.55977937,0.00011919,2]
[423397204,1780084243000,-500.0,0.0001192,2]
[423397200,1780084243000,-678.0,0.0001192,2]
[423397196,1780084243000,-500.0,0.0001192,2]
[423397194,1780084243000,-500.0,0.0001192,2]
[423397203,1780084243000,-500.0,0.0001192,2]
[423397195,1780084243000,-500.0,0.0001192,2]
[423397198,1780084243000,-500.0,0.0001192,2]
[423397202,1780084243000,-500.0,0.0001192,2]
[423397197,1780084243000,-500.0,0.0001192,2]
[423397199,1780084243000,-500.0,0.0001192,2]
[423397206,1780084243000,-500.0,0.0001192,2]
[423397201,1780084243000,-500.0,0.0001192,2]
[423397205,1780084243000,-500.0,0.0001192,2]
[423397207,1780084243000,-500.0,0.0001192,2]
[423397208,1780084243000,-500.0,0.0001192,2]
[423397215,1780084243000,-420.0,0.00012082,2]
[423397210,1780084243000,-821.100533,0.00011998,2]
[423397211,1780084243000,-150.92,0.00012,2]
[423397214,1780084243000,-420.0,0.00012082,2]
[423397212,1780084243000,-151.09,0.00012,2]
[423397213,1780084243000,-420.0,0.00012082,2]
[423397223,1780084243000,-500.0,0.00012092,2]
[423397216,1780084243000,-672.48,0.00012092,2]
[423397225,1780084243000,-733.76,0.00012092,2]
[423397228,1780084243000,-1353.93,0.00012093,2]
[423397224,1780084243000,-500.0,0.00012092,2]
[423397192,1780084243000,-247.96550589,0.0001192,2]
[423397209,1780084243000,-600.0,0.00011932,2]
[423397193,1780084243000,-500.0,0.0001192,2]
[423397226,1780084243000,-583.62,0.00012092,2]
[423397187,1780084243000,-500.0,0.0001192,2]
[423397164,1780084243000,-474.90946909,0.00011919,2]
[423397165,1780084243000,-500.0,0.00011919,2]
[423397163,1780084243000,-500.0,0.00011919,2]
[423397167,1780084243000,-293.2507353,0.00011919,2]
[423397162,1780084243000,-500.0,0.00011919,2]
[423397166,1780084243000,-500.0,0.00011919,2]
[423397168,1780084243000,-500.0,0.00011919,2]
[423397169,1780084243000,-500.0,0.00011919,2]
[423397172,1780084243000,-500.0,0.00011919,2]
[423397170,1780084243000,-500.0,0.00011919,2]
[423397171,1780084243000,-500.0,0.00011919,2]
[423397176,1780084243000,-500.0,0.00011919,2]
[423397181,1780084243000,-500.0,0.0001192,2]
[423397191,1780084243000,-500.0,0.0001192,2]
[423397174,1780084243000,-500.0,0.00011919,2]
[423397180,1780084243000,-500.0,0.0001192,2]
[423397177,1780084243000,-500.0,0.00011919,2]
[423397175,1780084243000,-500.0,0.00011919,2]
[423397182,1780084243000,-500.0,0.0001192,2]
[423397179,1780084243000,-500.0,0.00011919,2]
[423397173,1780084243000,-500.0,0.00011919,2]
[423397189,1780084243000,-500.0,0.0001192,2]
[423397188,1780084243000,-500.0,0.0001192,2]
[423397190,1780084243000,-500.0,0.0001192,2]
[423397183,1780084243000,-500.0,0.0001192,2]
[423397184,1780084243000,-500.0,0.0001192,2]
[423397186,1780084243000,-500.0,0.0001192,2]
[423397185,1780084243000,-500.0,0.0001192,2]
[423397178,1780084243000,-500.0,0.00011919,2]
[423397217,1780084243000,-1190.19,0.00012092,2]
[423397281,1780084243000,-606.57,0.00012095,2]
[423397220,1780084243000,-500.0,0.00012092,2]
[423397257,1780084243000,-500.0,0.00012095,2]
[423397259,1780084243000,-500.0,0.00012095,2]
[423397263,1780084243000,-500.0,0.00012095,2]
[423397261,1780084243000,-500.0,0.00012095,2]
[423397260,1780084243000,-500.0,0.00012095,2]
[423397258,1780084243000,-500.0,0.00012095,2]
[423397262,1780084243000,-500.0,0.00012095,2]
[423397266,1780084243000,-500.0,0.00012095,2]
[423397264,1780084243000,-500.0,0.00012095,2]
[423397265,1780084243000,-500.0,0.00012095,2]
[423397268,1780084243000,-1224.6738,0.00012095,2]
[423397274,1780084243000,-500.0,0.00012095,2]
[423397278,1780084243000,-500.0,0.00012095,2]
[423397273,1780084243000,-786.17,0.00012095,2]
[423397267,1780084243000,-500.0,0.00012095,2]
[423397275,1780084243000,-500.0,0.00012095,2]
[423397276,1780084243000,-2345.73,0.00012095,2]
[423397277,1780084243000,-500.0,0.00012095,2]
[423397279,1780084243000,-654.99,0.00012095,2]
[423397269,1780084243000,-500.0,0.00012095,2]
[423397270,1780084243000,-1811.41,0.00012095,2]
[423397271,1780084243000,-500.0,0.00012095,2]
[423397282,1780084243000,-500.0,0.00012095,2]
[423397280,1780084243000,-500.0,0.00012095,2]
[423397284,1780084243000,-500.0,0.00012193,2]
[423397283,1780084243000,-639.04797402,0.00012105,2]
[423397227,1780084243000,-500.0,0.00012093,2]
[423397256,1780084243000,-500.0,0.00012095,2]
[423397251,1780084243000,-500.0,0.00012095,2]
[423397272,1780084243000,-500.0,0.00012095,2]
[423397252,1780084243000,-500.0,0.00012095,2]
[423397218,1780084243000,-500.0,0.00012092,2]
[423397248,1780084243000,-254.68062367,0.00012094,2]
[423397219,1780084243000,-501.53,0.00012092,2]
[423397222,1780084243000,-500.0,0.00012092,2]
[423397221,1780084243000,-500.0,0.00012092,2]
[423397229,1780084243000,-1164.9,0.00012093,2]
[423397231,1780084243000,-500.0,0.00012093,2]
[423397241,1780084243000,-500.0,0.00012093,2]
[423397235,1780084243000,-652.43,0.00012093,2]
[423397230,1780084243000,-500.0,0.00012093,2]
[423397233,1780084243000,-500.0,0.00012093,2]
[423397234,1780084243000,-910.32,0.00012093,2]
[423397242,1780084243000,-1401.86,0.00012093,2]
[423397238,1780084243000,-217.0,0.00012093,2]
[423397232,1780084243000,-500.0,0.00012093,2]
[423397253,1780084243000,-507.97,0.00012095,2]
[423397250,1780084243000,-500.0,0.00012095,2]
[423397237,1780084243000,-743.79,0.00012093,2]
[423397249,1780084243000,-500.0,0.00012094,2]
[423397255,1780084243000,-500.0,0.00012095,2]
[423397247,1780084243000,-500.0,0.00012094,2]
[423397246,1780084243000,-500.0,0.00012093,2]
[423397243,1780084243000,-11644.4,0.00012093,2]
[423397254,1780084243000,-479.56,0.00012095,2]
[423397245,1780084243000,-1200.0,0.00012093,2]
[423397239,1780084243000,-677.48,0.00012093,2]
[423397236,1780084243000,-500.0,0.00012093,2]
[423397240,1780084243000,-1517.97,0.00012093,2]
[423397244,1780084243000,-1798.09,0.00012093,2]
[423397324,1780084244000,-500.0,0.00012194,2]
[423397328,1780084244000,-500.0,0.00012194,2]
[423397356,1780084244000,-910.32,0.00012367,2]
[423397326,1780084244000,-500.0,0.00012194,2]
[423397325,1780084244000,-500.0,0.00012194,2]
[423397323,1780084244000,-500.0,0.00012194,2]
[423397331,1780084244000,-500.0,0.00012194,2]
[423397321,1780084244000,-500.0,0.00012194,2]
[423397319,1780084244000,-500.0,0.00012194,2]
[423397320,1780084244000,-500.0,0.00012194,2]
[423397330,1780084244000,-500.0,0.00012194,2]
[423397327,1780084244000,-500.0,0.00012194,2]
[423397322,1780084244000,-500.0,0.00012194,2]
[423397329,1780084244000,-500.0,0.00012194,2]
[423397346,1780084244000,-500.0,0.00012366,2]